fUSD/lending_fUSD_20260313
["ID","MTS","AMOUNT","RATE_DAILY","PERIOD"]
[408330016,1773439851553,-181.485896,0.0002,2]
[408330017,1773439851563,-178.962555,0.0002,2]
[408330018,1773439851573,-181.485896,0.0002,2]
[408330019,1773439851582,-178.962555,0.0002,2]
[408330020,1773439851592,-181.485896,0.0002,2]
[408330021,1773439851601,-178.962555,0.0002,2]
[408330022,1773439851611,-178.962555,0.0002,2]
[408330023,1773439851620,-181.485896,0.0002,2]
[408330024,1773439851629,-178.962555,0.0002,2]
[408330025,1773439851640,-181.485896,0.0002,2]
[408330026,1773439851650,-178.962555,0.0002,2]
[408330027,1773439851661,-181.485896,0.0002,2]
[408330028,1773439851670,-178.962555,0.0002,2]
[408330029,1773439851679,-181.485896,0.0002,2]
[408330030,1773439851688,-178.962556,0.0002,2]
[408330031,1773439851697,-181.485896,0.0002,2]
[408330032,1773439851707,-181.485896,0.0002,2]
[408330033,1773439851716,-181.485896,0.0002,2]
[408330034,1773439851725,-181.485896,0.0002,2]
[408330035,1773439851735,-181.485896,0.0002,2]
[408330036,1773439851745,-181.485896,0.0002,2]
[408330037,1773439851754,-181.485896,0.0002,2]
[408330038,1773439851763,-181.485899,0.0002,2]
[408330039,1773439851776,-553.988829,0.0002,2]
[408330040,1773439851785,-553.988829,0.0002,2]
[408330041,1773439851794,-553.988829,0.0002,2]
[408330042,1773439851806,-553.988829,0.0002,2]
[408330043,1773439851818,-1747.80747,0.0002,2]
[408330044,1773439851828,-1747.80748,0.0002,2]
[408330045,1773439851838,-1747.80747,0.0002,2]
[408330046,1773439851849,-1747.80748,0.0002,2]
[408330047,1773439851859,-553.988829,0.0002,2]
[408330048,1773439851871,-675.19351,0.0002,2]
[408330049,1773439851880,-675.19351,0.0002,2]
[408330050,1773439851890,-553.988829,0.0002,2]
[408330051,1773439851899,-675.19351,0.0002,2]
[408330052,1773439851909,-675.19351,0.0002,2]
[408330053,1773439851923,-553.988829,0.0002,2]
[408330054,1773439851933,-553.988829,0.0002,2]
[408330055,1773439851942,-553.988829,0.0002,2]
[408330056,1773439851951,-553.988829,0.0002,2]
[408330057,1773439851960,-553.988829,0.0002,2]
[408330058,1773439851970,-553.988829,0.0002,2]
[408330059,1773439851979,-553.988829,0.0002,2]
[408330060,1773439851988,-553.988829,0.0002,2]
[408330061,1773439851997,-553.988829,0.0002,2]
[408330062,1773439852007,-553.988829,0.0002,2]
[408330063,1773439852016,-553.988829,0.0002,2]
[408330064,1773439852026,-553.988829,0.0002,2]
[408330065,1773439852035,-553.988829,0.0002,2]
[408330066,1773439852044,-553.988829,0.0002,2]
[408330067,1773439852053,-2515.951026,0.0002,2]
[408330068,1773439852062,-2515.951026,0.0002,2]
[408330069,1773439852071,-2515.951026,0.0002,2]
[408330070,1773439852081,-2515.951026,0.0002,2]
[408330071,1773439852093,-2515.951026,0.0002,2]
[408330072,1773439852105,-2515.951026,0.0002,2]
[408330073,1773439852114,-2515.951026,0.0002,2]
[408330074,1773439852123,-2515.951026,0.0002,2]
[408330075,1773439852132,-2515.951026,0.0002,2]
[408330076,1773439852141,-2515.951026,0.0002,2]
[408330077,1773439852150,-2515.951026,0.0002,2]
[408330078,1773439852159,-2515.951026,0.0002,2]
[408330079,1773439852168,-2515.951026,0.0002,2]
[408330080,1773439852177,-2515.951026,0.0002,2]
[408330081,1773439852186,-2515.951026,0.0002,2]
[408330082,1773439852195,-2515.951026,0.0002,2]
[408330083,1773439852204,-2515.951026,0.0002,2]
[408330084,1773439852213,-2515.951026,0.0002,2]
[408330085,1773439852222,-2515.951026,0.0002,2]
[408330086,1773439852232,-2515.951017,0.0002,2]
[408330087,1773439852241,-151.0,0.0002,2]
[408330088,1773439852250,-151.0,0.0002,2]
[408330089,1773439852259,-151.0,0.0002,2]
[408330090,1773439852268,-151.0,0.0002,2]
[408330091,1773439852277,-151.0,0.0002,2]
[408330092,1773439852286,-151.0,0.0002,2]
[408330093,1773439852295,-151.0,0.0002,2]
[408330094,1773439852304,-155.904935,0.0002,2]
[408330095,1773439852314,-645.123573,0.0002,2]
[408330096,1773439852323,-645.123573,0.0002,2]
[408330097,1773439852332,-645.123573,0.0002,2]
[408330098,1773439852341,-202.488617,0.0002,2]
[408330099,1773439852351,-645.123573,0.0002,2]
[408330100,1773439852360,-645.123573,0.0002,2]
[408330101,1773439852368,-645.123573,0.0002,2]
[408330102,1773439852378,-645.123573,0.0002,2]
[408330103,1773439852387,-645.123573,0.0002,2]
[408330104,1773439852396,-645.123573,0.0002,2]
[408330105,1773439852406,-645.123573,0.0002,2]
[408330106,1773439852415,-645.123573,0.0002,2]
[408330107,1773439852424,-645.123573,0.0002,2]
[408330108,1773439852433,-645.123573,0.0002,2]
[408330109,1773439852442,-645.123573,0.0002,2]
[408330110,1773439852457,-645.123573,0.0002,2]
[408330111,1773439852470,-645.123573,0.0002,2]
[408330112,1773439852480,-645.123573,0.0002,2]
[408330113,1773439852489,-150.0,0.0002,2]
[408330114,1773439852499,-645.123573,0.0002,2]
[408330115,1773439852508,-645.123573,0.0002,2]
[408330116,1773439852518,-645.123565,0.0002,2]
[408330117,1773439852530,-151.0,0.0002,2]
[408330118,1773439852541,-151.0,0.0002,2]
[408330119,1773439852550,-151.0,0.0002,2]
[408330120,1773439852560,-151.0,0.0002,2]
[408330121,1773439852569,-151.0,0.0002,2]
[408330122,1773439852579,-151.0,0.0002,2]
[408330123,1773439852589,-151.986024,0.0002,2]
[408330124,1773439852598,-1000.0,0.0002,7]
[408330125,1773439852607,-5000.0,0.0002,2]
[408330126,1773439852617,-5000.0,0.0002,2]
[408330127,1773439852626,-5000.0,0.0002,2]
[408330128,1773439852636,-5000.0,0.0002,2]
[408330129,1773439852646,-5000.0,0.0002,2]
[408330130,1773439852655,-5000.0,0.0002,2]
[408330131,1773439852664,-216.642998,0.0002,2]
[408330132,1773439852675,-151.0,0.0002,2]
[408330133,1773439852684,-151.0,0.0002,2]
[408330134,1773439852693,-151.0,0.0002,2]
[408330135,1773439852702,-151.0,0.0002,2]
[408330136,1773439852712,-151.0,0.0002,2]
[408330137,1773439852722,-151.0,0.0002,2]
[408330138,1773439852731,-151.0,0.0002,2]
[408330139,1773439852741,-151.0,0.0002,2]
[408330140,1773439852750,-151.0,0.0002,2]
[408330141,1773439852759,-151.0,0.0002,2]
[408330142,1773439852771,-151.0,0.0002,2]
[408330143,1773439852782,-151.0,0.0002,2]
[408330144,1773439852792,-151.0,0.0002,2]
[408330145,1773439852803,-151.0,0.0002,2]
[408330146,1773439852813,-264.287025,0.0002,2]
[408330147,1773439852823,-151.0,0.0002,2]
[408330148,1773439852833,-151.0,0.0002,2]
[408330149,1773439852843,-151.0,0.0002,2]
[408330150,1773439852853,-151.0,0.0002,2]
[408330151,1773439852862,-151.0,0.0002,2]
[408330152,1773439852874,-151.0,0.0002,2]
[408330153,1773439852883,-151.0,0.0002,2]
[408330154,1773439852893,-159.884788,0.0002,2]
[408330155,1773439852902,-151.0,0.0002,2]
[408330156,1773439852912,-151.0,0.0002,2]
[408330157,1773439852922,-151.0,0.0002,2]
[408330158,1773439852931,-151.0,0.0002,2]
[408330159,1773439852940,-151.0,0.0002,2]
[408330160,1773439852949,-151.0,0.0002,2]
[408330161,1773439852958,-151.0,0.0002,2]
[408330162,1773439852968,-151.0,0.0002,2]
[408330163,1773439852977,-151.0,0.0002,2]
[408330164,1773439852987,-151.0,0.0002,2]
[408330165,1773439852996,-151.0,0.0002,2]
[408330166,1773439853006,-151.0,0.0002,2]
[408330167,1773439853015,-197.334425,0.0002,2]
[408330168,1773439853025,-151.0,0.0002,2]
[408330169,1773439853034,-151.0,0.0002,3]
[408330170,1773439853044,-197.334425,0.0002,2]
[408330171,1773439853054,-151.0,0.0002,2]
[408330172,1773439853063,-151.0,0.0002,3]
[408330173,1773439853072,-151.0,0.0002,3]
[408330174,1773439853081,-153.435431,0.0002,2]
[408330175,1773439853090,-151.0,0.0002,3]
[408330176,1773439853100,-197.334425,0.0002,2]
[408330177,1773439853110,-151.0,0.0002,3]
[408330178,1773439853119,-197.334425,0.0002,2]
[408330179,1773439853128,-151.0,0.0002,3]
[408330180,1773439853138,-197.334425,0.0002,2]
[408330181,1773439853148,-151.0,0.0002,3]
[408330182,1773439853157,-197.334425,0.0002,2]
[408330183,1773439853166,-151.0,0.0002,3]
[408330184,1773439853177,-197.334425,0.0002,2]
[408330185,1773439853187,-151.0,0.0002,3]
[408330186,1773439853197,-197.334425,0.0002,2]
[408330187,1773439853207,-151.0,0.0002,3]
[408330188,1773439853217,-197.334425,0.0002,2]
[408330189,1773439853227,-197.334425,0.0002,2]
[408330190,1773439853236,-151.0,0.0002,3]
[408330191,1773439853247,-197.334425,0.0002,2]
[408330192,1773439853258,-151.0,0.0002,3]
[408330193,1773439853268,-197.334425,0.0002,2]
[408330194,1773439853277,-151.0,0.0002,3]
[408330195,1773439853289,-197.334425,0.0002,2]
[408330196,1773439853299,-151.0,0.0002,3]
[408330197,1773439853308,-197.334425,0.0002,2]
[408330198,1773439853318,-151.0,0.0002,3]
[408330199,1773439853328,-197.334425,0.0002,2]
[408330200,1773439853337,-151.0,0.0002,3]
[408330201,1773439853347,-197.334425,0.0002,2]
[408330202,1773439853356,-151.0,0.0002,3]
[408330203,1773439853365,-197.334425,0.0002,2]
[408330204,1773439853375,-151.0,0.0002,3]
[408330205,1773439853384,-197.334425,0.0002,2]
[408330206,1773439853394,-151.0,0.0002,3]
[408330207,1773439853403,-197.334425,0.0002,2]
[408330208,1773439853413,-151.0,0.0002,3]
[408330209,1773439853424,-197.334416,0.0002,2]
[408330210,1773439853433,-151.0,0.0002,2]
[408330211,1773439853442,-151.0,0.0002,3]
[408330212,1773439853452,-151.0,0.0002,2]
[408330213,1773439853461,-151.0,0.0002,3]
[408330214,1773439853470,-151.0,0.0002,2]
[408330215,1773439853480,-154.35303,0.0002,2]
[408330216,1773439853491,-151.0,0.0002,3]
[408330217,1773439853501,-151.0,0.0002,3]
[408330218,1773439853510,-151.0,0.0002,3]
[408330219,1773439853519,-151.0,0.0002,3]
[408330220,1773439853528,-219.709702,0.0002,3]
[408330221,1773439853538,-4334.23,0.0002,2]
[408330222,1773439853547,-557.0,0.00020008,2]
[408330223,1773439853556,-2000.0,0.0002001,2]
[408330224,1773439853565,-568.0,0.00020017,2]
[408330225,1773439853575,-538.4,0.0002002,2]
[408330226,1773439853584,-2000.0,0.0002002,2]
[408330227,1773439853593,-150.0,0.00020021,2]
[408330228,1773439853602,-2739.43777,0.0002003,2]
[408330229,1773439853611,-251.0,0.00020046,2]
[408330230,1773439853620,-223.95,0.00020056,2]
[408330231,1773439853630,-1000.0,0.00020082,2]
[408330232,1773439853640,-1146.2485,0.00020089,2]
[408330233,1773439853649,-2870.3693702,0.00020192,2]
[408330234,1773439853658,-420.0,0.00020197,2]
[408330235,1773439853667,-168.0,0.00020236,2]
[408330236,1773439853676,-1168.22,0.00020254,2]
[408330237,1773439853687,-2000.0,0.000203,2]
[408330238,1773439853697,-168.0,0.00020305,2]
[408330239,1773439853707,-2440.14,0.00020335,2]
[408330240,1773439853716,-1000.0,0.00020356,2]
[408330241,1773439853726,-224.81,0.00020369,2]
[408330242,1773439853735,-251.0,0.00020377,2]
[408330243,1773439853744,-500.0,0.00020421,2]
[408330244,1773439853754,-166.66,0.00020446,2]
[408330245,1773439853902,-166.67,0.00020494,2]
[408330246,1773439853912,-1000.0,0.00020521,2]
[408330247,1773439853921,-24963.25,0.00020532,2]
[408330248,1773439853931,-878.16,0.00020544,2]
[408330249,1773439853940,-158.29,0.00020548,2]
[408330250,1773439853950,-168.0,0.00020562,2]
[408330251,1773439853960,-251.0,0.00020572,2]
[408330252,1773439853969,-1000.0,0.0002063,2]
[408330253,1773439853979,-5222.00882765,0.00020632,2]
[408330254,1773439853988,-251.0,0.00020688,2]
[408330255,1773439853998,-734.44,0.0002075,2]
[408330256,1773439854007,-782.14,0.00020766,2]
[408330257,1773439854016,-568.0,0.00020776,2]
[408330258,1773439854025,-251.0,0.00020809,2]
[408330259,1773439854035,-568.0,0.00020813,2]
[408330260,1773439854044,-878.16,0.00020818,2]
[408330261,1773439854054,-568.0,0.00020818,2]
[408330262,1773439854063,-2000.0,0.00020867,2]
[408330263,1773439854072,-182.86,0.00020874,2]
[408330264,1773439854081,-1000.0,0.00020904,2]
[408330265,1773439854091,-1094.0,0.00020948,10]
[408330266,1773439854100,-602.0,0.00020966,2]
[408330267,1773439854109,-1199.67234342,0.00021,2]
[408330268,1773439854118,-198.01589907,0.00021,2]
[408330269,1773439854127,-2632.77068131,0.00021,7]
[408330270,1773439854137,-160.0,0.00021,7]
[408330271,1773439854145,-475.89,0.00021,2]
[408330272,1773439854155,-251.0,0.00021007,2]
[408330273,1773439854164,-782.14,0.0002104,2]
[408330274,1773439854173,-223.95,0.00021058,2]
[408330275,1773439854182,-1000.0,0.00021068,2]
[408330276,1773439854191,-150.0,0.0002107,2]
[408330277,1773439854200,-494.03,0.00021092,2]
[408330278,1773439854210,-251.0,0.00021147,2]
[408330279,1773439854219,-1000.0,0.0002116,2]
[408330280,1773439854229,-1000.0,0.00021178,2]
[408330281,1773439854238,-183.98,0.00021181,2]
[408330282,1773439854247,-168.0,0.0002119,2]
[408330283,1773439854256,-1000.0,0.00021226,2]
[408330284,1773439854265,-1000.0,0.00021273,2]
[408330285,1773439854275,-424.36,0.00021309,2]
[408330286,1773439854283,-552.85,0.00021314,2]
[408330287,1773439854293,-1000.0,0.00021327,2]
[408330288,1773439854301,-1000.0,0.00021354,2]
[408330289,1773439854311,-1000.0,0.00021379,2]
[408330290,1773439854320,-4082.84,0.00021388,2]
[408330291,1773439854329,-538.4,0.00021437,2]
[408330292,1773439854339,-1000.0,0.00021444,2]
[408330293,1773439854348,-1000.0,0.00021452,2]
[408330294,1773439854358,-1000.0,0.00021476,2]
[408330295,1773439854367,-1000.0,0.00021496,2]
[408330296,1773439854376,-182.84,0.00021499,2]
[408330297,1773439854385,-223.40261357,0.000215,2]
[408330298,1773439854395,-166.67,0.00021563,2]
[408330299,1773439854404,-1000.0,0.00021576,2]
[408330300,1773439854413,-153.32,0.00021589,2]
[408330301,1773439854422,-5715.97,0.00021595,2]
[408330302,1773439854431,-724.09,0.00021595,2]
[408330303,1773439854440,-1525.47,0.00021595,2]
[408330304,1773439854450,-1516.0,0.000216,2]
[408330305,1773439854459,-177.12,0.0002163,2]
[408330306,1773439854468,-7766.0,0.00021654,2]
[408330307,1773439854477,-150.0,0.00021659,2]
[408330308,1773439854487,-734.44,0.00021693,2]
[408330309,1773439854496,-1000.0,0.00021725,2]
[408330310,1773439854506,-1000.0,0.00021801,2]
[408330311,1773439854515,-1000.0,0.00021846,2]
[408330312,1773439854524,-182.86,0.00021848,2]
[408330313,1773439854533,-1000.0,0.00021881,2]
[408330314,1773439854543,-1152.0,0.00021917,2]
[408330315,1773439854552,-5000.0,0.00021918,2]
[408330316,1773439854561,-151.0,0.00021918,2]
[408330317,1773439854570,-151.0,0.00021918,2]
[408330318,1773439854580,-151.0,0.00021918,2]
[408330319,1773439854589,-151.0,0.00021918,2]
[408330320,1773439854598,-253.547426,0.00021918,2]
[408330321,1773439854607,-151.0,0.00021918,2]
[408330322,1773439854616,-151.0,0.00021918,2]
[408330323,1773439854625,-231.176919,0.00021918,2]
[408330324,1773439854638,-157.02,0.00021918,2]
[408330325,1773439854647,-152.21085184,0.00021918,2]
[408330326,1773439854658,-1450.0,0.00021938,10]
[408330327,1773439854667,-161.02,0.00021974,2]
[408330328,1773439854677,-161.02,0.00021974,2]
[408330329,1773439854687,-161.02,0.00021974,2]
[408330330,1773439854697,-161.02,0.00021974,2]
[408330331,1773439854706,-161.02,0.00021974,2]
[408330332,1773439854716,-161.02,0.00021974,2]
[408330333,1773439854725,-161.02,0.00021974,2]
[408330334,1773439854734,-161.02,0.00021974,2]
[408330335,1773439854744,-155.0,0.00021999,2]
[408330336,1773439854753,-1000.0,0.00021999,2]
[408330337,1773439854762,-164.92,0.00022,2]
[408330338,1773439854773,-160.0,0.00022,2]
[408330339,1773439854783,-804.68001795,0.00022,7]
[408330340,1773439854792,-166.66,0.00022005,2]
[408330341,1773439854801,-150.0,0.00022017,2]
[408330342,1773439854811,-1000.0,0.00022025,2]
[408330343,1773439854821,-587.0,0.00022026,2]
[408330344,1773439854830,-421.03961596,0.00022052,7]
[408330345,1773439854840,-223.95,0.00022061,2]
[408330346,1773439854849,-204034.1455898,0.00022069,2]
[408330347,1773439854859,-15891.4051005,0.00022069,2]
[408330348,1773439854868,-2179.4247203,0.00022069,2]
[408330349,1773439854878,-151.0,0.0002207,2]
[408330350,1773439854887,-151.0,0.0002207,2]
[408330351,1773439854897,-2500.0,0.00022082,7]
[408330352,1773439854907,-497.40021776,0.000221,2]
[408330353,1773439854916,-241.72553888,0.0002211,2]
[408330354,1773439854926,-1000.0,0.00022111,2]
[408330355,1773439854935,-1000.0,0.00022149,2]
[408330356,1773439854945,-1000.0,0.00022163,2]
[408330357,1773439854954,-151.0,0.00022173,2]
[408330358,1773439854963,-177555.674398,0.00022175,2]
[408330359,1773439854973,-186.01,0.00022188,2]
[408330360,1773439854982,-1999.0,0.00022273,2]
[408330361,1773439854991,-546.29,0.00022279,2]
[408330362,1773439855001,-1089.61,0.00022279,2]
[408330363,1773439855010,-1000.0,0.00022321,2]
[408330364,1773439855020,-183.98,0.0002234,2]
[408330365,1773439855029,-1000.0,0.00022356,7]
[408330366,1773439855039,-500.0,0.00022356,7]
[408330367,1773439855048,-150.0,0.00022419,2]
[408330368,1773439855057,-1000.0,0.00022444,2]
[408330369,1773439855067,-30577.07270788,0.000225,2]
[408330370,1773439855076,-1000.0,0.00022547,2]
[408330371,1773439855085,-172.454057,0.00022594,7]
[408330372,1773439855094,-3627.46758852,0.000226,2]
[408330373,1773439855103,-150.0,0.00022602,2]
[408330374,1773439855112,-166.67,0.00022632,2]
[408330375,1773439855122,-734.44,0.00022636,2]
[408330376,1773439855131,-526.42949861,0.0002271,2]
[408330377,1773439855140,-2000.0,0.00022714,2]
[408330378,1773439855148,-150.0,0.0002277,2]
[408330379,1773439855158,-150.0,0.00022779,14]
[408330380,1773439855167,-150.0,0.00022779,14]
[408330381,1773439855176,-178.0,0.00022779,14]
[408330382,1773439855186,-150.0,0.00022786,2]
[408330383,1773439855195,-5998.0,0.0002279,2]
[408330384,1773439855205,-2463.0,0.0002279,2]
[408330385,1773439855214,-3753.0,0.0002279,2]
[408330386,1773439855223,-918.054,0.000228,2]
[408330387,1773439855232,-2000.0,0.000228,2]
[408330388,1773439855241,-1000.0,0.00022821,2]
[408330389,1773439855250,-150.0,0.0002283,7]
[408330390,1773439855259,-241.0,0.0002283,7]
[408330391,1773439855268,-279.83341425,0.00022845,2]
[408330392,1773439855278,-538.4,0.00022855,2]
[408330393,1773439855287,-9512.0,0.00022874,2]
[408330394,1773439855296,-1000.0,0.00022881,2]
[408330395,1773439855306,-151.49160245,0.00022885,5]
[408330396,1773439855315,-182.86,0.0002295,2]
[408330397,1773439855324,-350.0,0.00022956,2]
[408330398,1773439855332,-150.0,0.00022967,2]
[408330399,1773439855341,-150.0,0.00022967,2]
[408330400,1773439855350,-150.0,0.00022967,2]
[408330401,1773439855359,-150.0,0.00022967,2]
[408330402,1773439855368,-269.0,0.00022967,2]
[408330403,1773439855377,-500.0,0.00022973,2]
[408330404,1773439855386,-151.0,0.00022997,7]
[408330405,1773439855396,-293398.1838051,0.00023,2]
[408330406,1773439855405,-1006.38279321,0.00023,2]
[408330407,1773439855414,-641.5102495,0.00023,7]
[408330408,1773439855423,-150.0,0.00023,2]
[408330409,1773439855431,-150.0,0.00023,2]
[408330410,1773439855440,-150.0,0.00023,2]
[408330411,1773439855450,-3508.0,0.00023,2]
[408330412,1773439855459,-620.0,0.00023,2]
[408330413,1773439855468,-1343.0,0.00023,2]
[408330414,1773439855477,-1259.0,0.00023,2]
[408330415,1773439855486,-524.092,0.00023,2]
[408330416,1773439855496,-1214.0,0.00023,2]
[408330417,1773439855506,-1000.0,0.00023052,2]
[408330418,1773439855515,-223.95,0.00023064,2]
[408330419,1773439855525,-1000.0,0.00023095,2]
[408330420,1773439855534,-150.0,0.00023126,7]
[408330421,1773439855543,-150.0,0.00023126,7]
[408330422,1773439855553,-236.0,0.00023126,7]
[408330423,1773439855561,-150.0,0.00023126,14]
[408330424,1773439855571,-150.0,0.00023126,14]
[408330425,1773439855579,-150.0,0.00023126,14]
[408330426,1773439855588,-205.0,0.00023126,14]
[408330427,1773439855597,-2500.0,0.00023178,7]
[408330428,1773439855607,-2000.0,0.00023185,2]
[408330429,1773439855615,-350.0,0.00023186,3]
[408330430,1773439855625,-1000.0,0.00023197,2]
[408330431,1773439855634,-150.0,0.00023199,2]
[408330432,1773439855643,-150.0,0.00023199,2]
[408330433,1773439855652,-150.0,0.00023199,2]
[408330434,1773439855662,-150.0,0.00023199,2]
[408330435,1773439855671,-150.0,0.00023199,2]
[408330436,1773439855680,-150.0,0.00023199,2]
[408330437,1773439855689,-291.0,0.00023199,2]
[408330438,1773439855698,-873.00857725,0.000232,2]
[408330439,1773439855707,-1000.0,0.00023208,2]
[408330440,1773439855716,-2487.0,0.00023214,2]
[408330441,1773439855726,-150.0,0.00023225,2]
[408330442,1773439855735,-1000.0,0.00023228,2]
[408330443,1773439855744,-1000.0,0.00023243,2]
[408330444,1773439855753,-1000.0,0.00023273,2]
[408330445,1773439855763,-150.0,0.000233,2]
[408330446,1773439855775,-150.0,0.00023339,7]
[408330447,1773439855784,-150.0,0.00023339,7]
[408330448,1773439855793,-260.0,0.00023339,7]
[408330449,1773439855802,-1000.0,0.00023355,2]
[408330450,1773439855812,-1000.0,0.00023369,2]
[408330451,1773439855821,-150.0,0.0002337,14]
[408330452,1773439855831,-150.0,0.0002337,14]
[408330453,1773439855840,-150.0,0.0002337,14]
[408330454,1773439855851,-203.0,0.0002337,14]
[408330455,1773439855861,-150.0,0.0002337,7]
[408330456,1773439855870,-232.0,0.0002337,7]
[408330457,1773439855879,-150.0,0.0002337,14]
[408330458,1773439855888,-150.0,0.0002337,14]
[408330459,1773439856002,-167.0,0.0002337,14]
[408330460,1773439856012,-150.0,0.0002337,2]
[408330461,1773439856022,-150.0,0.0002337,2]
[408330462,1773439856031,-150.0,0.0002337,2]
[408330463,1773439856040,-150.0,0.0002337,2]
[408330464,1773439856049,-150.0,0.0002337,2]
[408330465,1773439856058,-268.0,0.0002337,2]
[408330466,1773439856067,-150.0,0.0002337,14]
[408330467,1773439856076,-150.0,0.0002337,14]
[408330468,1773439856086,-158.0,0.0002337,14]
[408330469,1773439856095,-700.0,0.00023404,2]
[408330470,1773439856105,-150.0,0.00023424,7]
[408330471,1773439856116,-150.0,0.00023424,7]
[408330472,1773439856126,-234.0,0.00023424,7]
[408330473,1773439856136,-1000.0,0.00023452,7]
[408330474,1773439856146,-500.0,0.00023452,7]
[408330475,1773439856155,-150.0,0.00023478,14]
[408330476,1773439856164,-150.0,0.00023478,14]
[408330477,1773439856173,-150.0,0.00023478,14]
[408330478,1773439856182,-204.0,0.00023478,14]
[408330479,1773439856191,-150.0,0.00023478,14]
[408330480,1773439856200,-150.0,0.00023478,14]
[408330481,1773439856210,-198.0,0.00023478,14]
[408330482,1773439856219,-150.0,0.00023478,14]
[408330483,1773439856229,-150.0,0.00023478,14]
[408330484,1773439856238,-211.0,0.00023478,14]
[408330485,1773439856247,-150.0,0.00023478,14]
[408330486,1773439856256,-150.0,0.00023478,14]
[408330487,1773439856265,-150.0,0.00023478,14]
[408330488,1773439856274,-206.0,0.00023478,14]
[408330489,1773439856284,-150.0,0.00023478,14]
[408330490,1773439856293,-150.0,0.00023478,14]
[408330491,1773439856302,-270.0,0.00023478,14]
[408330492,1773439856311,-150.0,0.00023478,14]
[408330493,1773439856320,-150.0,0.00023478,14]
[408330494,1773439856329,-159.0,0.00023478,14]
[408330495,1773439856338,-150.0,0.00023478,7]
[408330496,1773439856347,-150.0,0.00023478,7]
[408330497,1773439856357,-160.0,0.00023478,7]
[408330498,1773439856366,-150.0,0.00023478,14]
[408330499,1773439856375,-150.0,0.00023478,14]
[408330500,1773439856384,-262.0,0.00023478,14]
[408330501,1773439856393,-1000.0,0.00023495,2]
[408330502,1773439856402,-200.0,0.000235,2]
[408330503,1773439856411,-1000.0,0.00023537,2]
[408330504,1773439856420,-152.68821992,0.00023558,2]
[408330505,1773439856429,-150.0,0.00023586,7]
[408330506,1773439856438,-150.0,0.00023586,7]
[408330507,1773439856447,-235.0,0.00023586,7]
[408330508,1773439856458,-150.0,0.00023612,2]
[408330509,1773439856467,-1000.0,0.00023614,2]
[408330510,1773439856477,-157.02,0.0002363,2]
[408330511,1773439856486,-245.29530948,0.0002364,2]
[408330512,1773439856498,-1000.0,0.00023643,2]
[408330513,1773439856509,-150.0,0.00023694,7]
[408330514,1773439856520,-225.0,0.00023694,7]
[408330515,1773439856531,-1000.0,0.00023698,2]